[Event "FIDE U16 Olympiad_boards_1-80"]
[Site "Eindhoven, Netherlands"]
[Date "2023.08.14"]
[Round "2.74"]
[White "Daniil, Daniil"]
[Black "Grooten, Tommy"]
[Result "1/2-1/2"]
[TimeControl "2700+10"]
[WhiteElo "1379"]
[BlackElo "1908"]

1. e4 {[%clk 00:45:18]} {[%emt 00:00:02]} c5 {[%clk 00:45:19]} {[%emt
00:00:02]} 2. Nf3 {[%clk 00:45:27]} {[%emt 00:00:01]} e6 {[%clk 00:45:28]}
{[%emt 00:00:01]} 3. d4 {[%clk 00:45:36]} {[%emt 00:00:01]} cxd4 {[%clk
00:45:37]} {[%emt 00:00:02]} 4. Nxd4 {[%clk 00:45:45]} a6 {[%clk 00:45:46]} 5.
c4 {[%clk 00:45:33]} {[%emt 00:00:23]} Qc7 {[%clk 00:45:54]} {[%emt 00:00:01]}
6. a3 {[%clk 00:44:39]} {[%emt 00:01:04]} Nf6 {[%clk 00:45:58]} {[%emt
00:00:06]} 7. Nc3 {[%clk 00:44:49]} {[%emt 00:00:01]} d6 {[%clk 00:46:00]}
{[%emt 00:00:07]} 8. Be2 {[%clk 00:43:19]} {[%emt 00:01:39]} b6 {[%clk
00:45:16]} {[%emt 00:00:54]} 9. Be3 {[%clk 00:43:13]} {[%emt 00:00:16]} Bb7
{[%clk 00:45:23]} {[%emt 00:00:04]} 10. f3 {[%clk 00:43:19]} {[%emt 00:00:05]}
Be7 {[%clk 00:45:14]} {[%emt 00:00:18]} 11. O-O {[%clk 00:41:01]} {[%emt
00:02:29]} Nbd7 {[%clk 00:44:38]} {[%emt 00:00:45]} 12. Rc1 {[%clk 00:38:59]}
{[%emt 00:02:12]} Rc8 {[%clk 00:43:28]} {[%emt 00:01:19]} 13. Qd2 {[%clk
00:34:58]} {[%emt 00:04:12]} Qb8 {[%clk 00:43:27]} {[%emt 00:00:10]} 14. Na4
{[%clk 00:34:14]} {[%emt 00:00:55]} Bd8 {[%clk 00:43:12]} {[%emt 00:00:25]} 15.
Rfd1 {[%clk 00:33:54]} {[%emt 00:00:30]} Bc7 {[%clk 00:41:08]} {[%emt
00:02:13]} 16. Rc2 {[%clk 00:29:42]} {[%emt 00:04:22]} O-O {[%clk 00:40:02]}
{[%emt 00:01:16]} 17. Bf2 {[%clk 00:28:16]} {[%emt 00:01:37]} d5 {[%clk
00:38:18]} {[%emt 00:01:54]} 18. cxd5 {[%clk 00:27:47]} {[%emt 00:00:39]} Bxh2+
{[%clk 00:38:06]} {[%emt 00:00:21]} 19. Kh1 {[%clk 00:26:25]} {[%emt 00:01:33]}
Rxc2 {[%clk 00:35:45]} {[%emt 00:02:31]} 20. Nxc2 {[%clk 00:25:39]} {[%emt
00:00:56]} exd5 {[%clk 00:30:51]} {[%emt 00:05:04]} 21. exd5 {[%clk 00:24:46]}
{[%emt 00:01:03]} Bxd5 {[%clk 00:27:38]} {[%emt 00:03:23]} 22. Nc3 {[%clk
00:19:20]} {[%emt 00:05:36]} Bb7 {[%clk 00:26:13]} {[%emt 00:01:34]} 23. Nd4
{[%clk 00:17:30]} {[%emt 00:02:00]} Qe5 {[%clk 00:24:55]} {[%emt 00:01:28]} 24.
Be3 {[%clk 00:13:25]} {[%emt 00:04:16]} Qh5 {[%clk 00:23:57]} {[%emt 00:01:06]}
25. f4 {[%clk 00:13:00]} {[%emt 00:00:37]} Qh6 {[%clk 00:21:51]} {[%emt
00:02:16]} 26. Nf5 {[%clk 00:12:33]} {[%emt 00:00:37]} Qh3 {[%clk 00:21:55]}
{[%emt 00:00:06]} 27. Nd5 {[%clk 00:04:59]} {[%emt 00:07:44]} Bxd5 {[%clk
00:14:53]} {[%emt 00:07:11]} 28. Qxd5 {[%clk 00:03:55]} {[%emt 00:01:15]} Nxd5
{[%clk 00:14:37]} {[%emt 00:00:26]} 29. gxh3 {[%clk 00:04:04]} {[%emt
00:00:01]} Nxe3 {[%clk 00:13:56]} {[%emt 00:00:51]} 30. Nxe3 {[%clk 00:03:04]}
{[%emt 00:01:10]} Bxf4 {[%clk 00:13:49]} {[%emt 00:00:17]} 31. Ng2 {[%clk
00:03:13]} {[%emt 00:00:02]} Be5 {[%clk 00:13:48]} {[%emt 00:00:10]} 32. Rxd7
{[%clk 00:03:20]} {[%emt 00:00:03]} Bxb2 {[%clk 00:13:56]} {[%emt 00:00:02]} 33.
a4 {[%clk 00:02:57]} {[%emt 00:00:34]} Rc8 {[%clk 00:11:37]} {[%emt 00:02:28]}
34. Nf4 {[%clk 00:02:12]} {[%emt 00:00:55]} b5 {[%clk 00:10:25]} {[%emt
00:01:22]} 35. axb5 {[%clk 00:01:55]} {[%emt 00:00:27]} axb5 {[%clk 00:10:34]}
36. Bxb5 {[%clk 00:01:40]} {[%emt 00:00:25]} g6 {[%clk 00:10:31]} {[%emt
00:00:13]} 37. Bd3 {[%clk 00:01:35]} {[%emt 00:00:15]} Rc1+ {[%clk 00:10:15]}
{[%emt 00:00:26]} 38. Kg2 {[%clk 00:01:42]} {[%emt 00:00:02]} Be5 {[%clk
00:08:55]} {[%emt 00:01:30]} 39. Ne2 {[%clk 00:01:28]} {[%emt 00:00:25]} Rc5
{[%clk 00:08:25]} {[%emt 00:00:38]} 40. Kf3 {[%clk 00:01:26]} {[%emt 00:00:13]}
Kg7 {[%clk 00:07:47]} {[%emt 00:00:49]} 41. Nf4 {[%clk 00:01:20]} {[%emt
00:00:16]} Bxf4 {[%clk 00:07:51]} {[%emt 00:00:05]} 42. Kxf4 {[%clk 00:01:29]}
{[%emt 00:00:02]} Ra5 {[%clk 00:07:05]} {[%emt 00:00:55]} 43. Rc7 {[%clk
00:01:02]} {[%emt 00:00:38]} Rh5 {[%clk 00:06:15]} {[%emt 00:01:00]} 44. Kg4
{[%clk 00:01:05]} {[%emt 00:00:07]} Re5 {[%clk 00:06:02]} {[%emt 00:00:23]} 45.
Bc4 {[%clk 00:00:55]} {[%emt 00:00:20]} Rf5 {[%clk 00:06:05]} {[%emt 00:00:06]}
46. Kg3 {[%clk 00:00:53]} {[%emt 00:00:13]} Rf6 {[%clk 00:06:06]} {[%emt
00:00:09]} 47. Kg4 {[%clk 00:00:59]} {[%emt 00:00:04]} Rf5 {[%clk 00:06:09]}
{[%emt 00:00:07]} 48. Bd3 {[%clk 00:01:03]} {[%emt 00:00:05]} Re5 {[%clk
00:06:06]} {[%emt 00:00:14]} 49. Kf4 {[%clk 00:00:55]} {[%emt 00:00:18]} Rh5
{[%clk 00:06:12]} {[%emt 00:00:04]} 50. Kg3 {[%clk 00:01:00]} {[%emt 00:00:05]}
Re5 {[%clk 00:05:57]} {[%emt 00:00:24]} 51. Bc2 {[%clk 00:01:04]} {[%emt
00:00:06]} Rb5 {[%clk 00:05:12]} {[%emt 00:00:55]} 52. Kg4 {[%clk 00:00:56]}
{[%emt 00:00:19]} Re5 {[%clk 00:05:05]} {[%emt 00:00:16]} 53. Kg3 {[%clk
00:01:02]} {[%emt 00:00:05]} Rb5 {[%clk 00:05:09]} {[%emt 00:00:05]} 54. Kg4
{[%clk 00:01:03]} {[%emt 00:00:09]} Re5 {[%clk 00:05:17]} {[%emt 00:00:02]} 55.
Kf4 {[%clk 00:00:49]} {[%emt 00:00:25]} Rh5 {[%clk 00:05:18]} {[%emt 00:00:08]}
56. Kg3 {[%clk 00:00:57]} {[%emt 00:00:03]} Re5 {[%clk 00:05:19]} {[%emt
00:00:08]} 57. h4 {[%clk 00:00:50]} {[%emt 00:00:18]} h5 {[%clk 00:05:22]}
{[%emt 00:00:07]} 58. Kf4 {[%clk 00:00:49]} {[%emt 00:00:10]} Rb5 {[%clk
00:05:12]} {[%emt 00:00:20]} 59. Kg3 {[%clk 00:00:55]} {[%emt 00:00:04]} Re5
{[%clk 00:05:17]} {[%emt 00:00:05]} 60. Kf4 {[%clk 00:01:02]} {[%emt 00:00:04]}
Rb5 {[%clk 00:05:25]} {[%emt 00:00:01]} 61. Kg3 {[%clk 00:01:05]} {[%emt
00:00:08]} Re5 {[%clk 00:05:33]} {[%emt 00:00:02]} 62. Kf4 {[%clk 00:00:26]}
{[%emt 00:00:48]} Rb5 {[%clk 00:05:34]} {[%emt 00:00:09]} 63. Kf3 {[%clk
00:00:34]} {[%emt 00:00:03]} Rb4 {[%clk 00:05:28]} {[%emt 00:00:15]} 64. Kg3
{[%clk 00:00:42]} {[%emt 00:00:02]} Rd4 {[%clk 00:05:21]} {[%emt 00:00:17]} 65.
Rb7 {[%clk 00:00:23]} {[%emt 00:00:30]} Rd6 {[%clk 00:05:02]} {[%emt 00:00:28]}
66. Rc7 {[%clk 00:00:24]} {[%emt 00:00:10]} Rb6 {[%clk 00:04:49]} {[%emt
00:00:23]} 67. Kh3 {[%clk 00:00:30]} {[%emt 00:00:04]} Rb5 {[%clk 00:04:38]}
{[%emt 00:00:20]} 68. Kg3 {[%clk 00:00:34]} {[%emt 00:00:06]} Re5 {[%clk
00:04:45]} {[%emt 00:00:03]} 69. Kh3 {[%clk 00:00:41]} {[%emt 00:00:03]} Rb5
{[%clk 00:04:53]} {[%emt 00:00:02]} 70. Kg3 {[%clk 00:00:20]} {[%emt 00:00:32]}
Re5 {[%clk 00:05:00]} {[%emt 00:00:02]} 71. Kh2 {[%clk 00:00:21]} {[%emt
00:00:10]} Rb5 {[%clk 00:05:02]} {[%emt 00:00:07]} 72. Kh3 {[%clk 00:00:30]}
{[%emt 00:00:02]} Re5 {[%clk 00:05:06]} {[%emt 00:00:06]} 73. Kg3 {[%clk
00:00:39]} {[%emt 00:00:01]} Rb5 {[%clk 00:05:13]} {[%emt 00:00:03]} 74. Kh3
{[%clk 00:00:48]} {[%emt 00:00:01]} Re5 {[%clk 00:05:21]} 75. Kg3 {[%clk
00:00:58]} Rb5 {[%clk 00:05:30]} {[%emt 00:00:01]} 76. Kh3 {[%clk 00:01:06]}
{[%emt 00:00:02]} 1/2-1/2

[Event "FIDE U16 Olympiad_boards_1-80"]
[Site "Eindhoven, Netherlands"]
[Date "2023.08.14"]
[Round "2.75"]
[White "Feng, Elysia"]
[Black "Karaolis, Andreas"]
[Result "0-1"]
[TimeControl "2700+10"]
[WhiteElo "1635"]
[BlackElo "1327"]

1. e4 {[%clk 00:45:18]} {[%emt 00:00:02]} d6 {[%clk 00:45:15]} {[%emt
00:00:06]} 2. d4 {[%clk 00:45:21]} {[%emt 00:00:07]} Nf6 {[%clk 00:45:23]}
{[%emt 00:00:02]} 3. Nc3 {[%clk 00:45:26]} {[%emt 00:00:04]} g6 {[%clk
00:45:26]} {[%emt 00:00:07]} 4. Nf3 {[%clk 00:45:34]} {[%emt 00:00:03]} Bg7
{[%clk 00:45:32]} {[%emt 00:00:04]} 5. Be3 {[%clk 00:45:32]} {[%emt 00:00:11]}
O-O {[%clk 00:45:38]} {[%emt 00:00:05]} 6. Be2 {[%clk 00:45:14]} {[%emt
00:00:28]} d5 {[%clk 00:45:19]} {[%emt 00:00:29]} 7. e5 {[%clk 00:42:33]}
{[%emt 00:02:51]} Ne4 {[%clk 00:45:21]} {[%emt 00:00:07]} 8. O-O {[%clk
00:41:35]} {[%emt 00:01:09]} a6 {[%clk 00:43:59]} {[%emt 00:01:33]} 9. Nxe4
{[%clk 00:39:53]} {[%emt 00:01:51]} dxe4 {[%clk 00:44:06]} {[%emt 00:00:03]} 10.
Nd2 {[%clk 00:40:01]} {[%emt 00:00:01]} c5 {[%clk 00:42:54]} {[%emt 00:01:23]}
11. Nxe4 {[%clk 00:39:13]} {[%emt 00:00:58]} cxd4 {[%clk 00:39:02]} {[%emt
00:04:02]} 12. Bxd4 {[%clk 00:39:05]} {[%emt 00:00:18]} Nc6 {[%clk 00:38:09]}
{[%emt 00:01:02]} 13. c3 {[%clk 00:36:20]} {[%emt 00:02:56]} Bxe5 {[%clk
00:36:16]} {[%emt 00:02:03]} 14. Bxe5 {[%clk 00:36:16]} {[%emt 00:00:14]} Nxe5
{[%clk 00:36:14]} {[%emt 00:00:11]} 15. Qb3 {[%clk 00:31:20]} {[%emt 00:05:07]}
Qc7 {[%clk 00:31:56]} {[%emt 00:04:27]} 16. Rac1 {[%clk 00:27:55]} {[%emt
00:03:35]} Be6 {[%clk 00:27:56]} {[%emt 00:04:11]} 17. c4 {[%clk 00:25:59]}
{[%emt 00:02:07]} Rac8 {[%clk 00:27:13]} {[%emt 00:00:52]} 18. Nd2 {[%clk
00:26:05]} {[%emt 00:00:04]} b5 {[%clk 00:23:15]} {[%emt 00:04:08]} 19. Qb4
{[%clk 00:21:26]} {[%emt 00:04:49]} bxc4 {[%clk 00:18:42]} {[%emt 00:04:43]} 20.
f4 {[%clk 00:21:09]} {[%emt 00:00:26]} Rb8 {[%clk 00:17:48]} {[%emt 00:01:04]}
21. Qa3 {[%clk 00:20:14]} {[%emt 00:01:06]} Qb6+ {[%clk 00:17:16]} {[%emt
00:00:43]} 22. Kh1 {[%clk 00:18:44]} {[%emt 00:01:39]} Qxb2 {[%clk 00:13:12]}
{[%emt 00:04:14]} 23. Qe3 {[%clk 00:15:22]} {[%emt 00:03:32]} Rbd8 {[%clk
00:04:01]} {[%emt 00:09:21]} 24. Nxc4 {[%clk 00:13:31]} {[%emt 00:02:01]} Nxc4
{[%clk 00:04:02]} {[%emt 00:00:10]} 25. Bxc4 {[%clk 00:13:39]} {[%emt
00:00:01]} Bxc4 {[%clk 00:03:58]} {[%emt 00:00:14]} 26. Rxc4 {[%emt 00:00:07]}
Qxa2 {[%clk 00:04:01]} {[%emt 00:00:01]} 27. Rc3 {[%clk 00:12:51]} {[%emt
00:01:07]} e6 {[%clk 00:03:59]} {[%emt 00:00:13]} 28. Qg3 {[%clk 00:12:58]}
{[%emt 00:00:02]} Qe2 {[%clk 00:03:30]} {[%emt 00:00:38]} 29. Rcf3 {[%clk
00:12:58]} {[%emt 00:00:11]} Rd1 {[%clk 00:03:21]} {[%emt 00:00:19]} 30. Kg1
{[%clk 00:12:45]} {[%emt 00:00:23]} Rfd8 {[%clk 00:03:09]} {[%emt 00:00:22]} 31.
h3 {[%clk 00:10:49]} {[%emt 00:02:06]} Rxf1+ {[%clk 00:02:55]} {[%emt
00:00:24]} 32. Rxf1 {[%clk 00:10:58]} {[%emt 00:00:01]} Rd1 {[%clk 00:02:58]}
{[%emt 00:00:06]} 33. Rxd1 {[%clk 00:11:07]} Qxd1+ {[%clk 00:03:08]} 34. Kh2
{[%clk 00:11:17]} {[%emt 00:00:01]} Qd2 {[%clk 00:02:50]} {[%emt 00:00:27]} 35.
Qf3 {[%clk 00:11:15]} {[%emt 00:00:12]} a5 {[%clk 00:02:53]} {[%emt 00:00:07]}
36. Kg3 {[%clk 00:11:23]} {[%emt 00:00:02]} Kg7 {[%clk 00:02:41]} {[%emt
00:00:22]} 37. Qe4 {[%clk 00:11:29]} {[%emt 00:00:02]} Qc3+ {[%clk 00:02:37]}
{[%emt 00:00:15]} 38. Kh2 {[%clk 00:11:31]} {[%emt 00:00:09]} h5 {[%clk
00:02:05]} {[%emt 00:00:42]} 39. Qa4 {[%clk 00:11:37]} {[%emt 00:00:04]} Qb4
{[%clk 00:02:00]} {[%emt 00:00:15]} 40. Qa1+ {[%clk 00:11:45]} {[%emt
00:00:02]} f6 {[%clk 00:01:27]} {[%emt 00:00:43]} 41. Qc1 {[%clk 00:11:55]}
{[%emt 00:00:01]} Qd6 {[%clk 00:01:30]} {[%emt 00:00:06]} 42. Qc4 {[%clk
00:12:04]} {[%emt 00:00:02]} g5 {[%clk 00:01:30]} {[%emt 00:00:09]} 43. g3
{[%clk 00:11:35]} {[%emt 00:00:39]} h4 {[%clk 00:01:29]} {[%emt 00:00:11]} 44.
Kg2 {[%clk 00:11:11]} {[%emt 00:00:34]} hxg3 {[%clk 00:01:35]} {[%emt
00:00:03]} 45. Kxg3 {[%clk 00:11:20]} Qxf4+ {[%clk 00:01:44]} {[%emt 00:00:02]}
46. Qxf4 {[%clk 00:11:28]} {[%emt 00:00:01]} gxf4+ {[%clk 00:01:52]} {[%emt
00:00:02]} 0-1

[Event "FIDE U16 Olympiad_boards_1-80"]
[Site "Eindhoven, Netherlands"]
[Date "2023.08.14"]
[Round "2.76"]
[White "Bouzana, Christina"]
[Black "Leenen, Boyd"]
[Result "0-1"]
[TimeControl "2700+10"]
[WhiteElo "1140"]
[BlackElo "2008"]

1. d4 {[%clk 00:45:18]} {[%emt 00:00:02]} Nf6 {[%clk 00:45:18]} {[%emt
00:00:03]} 2. c4 {[%clk 00:45:26]} {[%emt 00:00:01]} e6 {[%clk 00:45:26]}
{[%emt 00:00:03]} 3. Nc3 {[%clk 00:45:34]} {[%emt 00:00:02]} Bb4 {[%clk
00:45:32]} {[%emt 00:00:04]} 4. e3 {[%clk 00:45:42]} {[%emt 00:00:02]} d5
{[%clk 00:45:38]} {[%emt 00:00:03]} 5. Nge2 {[%clk 00:45:48]} {[%emt 00:00:05]}
O-O {[%clk 00:45:42]} {[%emt 00:00:05]} 6. a3 {[%clk 00:45:56]} {[%emt
00:00:02]} Bxc3+ {[%clk 00:45:47]} {[%emt 00:00:06]} 7. Nxc3 {[%clk 00:46:03]}
{[%emt 00:00:04]} b6 {[%clk 00:45:45]} {[%emt 00:00:11]} 8. cxd5 {[%clk
00:45:28]} {[%emt 00:00:45]} exd5 {[%clk 00:45:52]} {[%emt 00:00:02]} 9. Be2
{[%clk 00:45:34]} {[%emt 00:00:04]} Bb7 {[%clk 00:46:00]} {[%emt 00:00:03]} 10.
O-O {[%clk 00:45:39]} {[%emt 00:00:05]} Re8 {[%clk 00:46:03]} {[%emt 00:00:06]}
11. Bf3 {[%clk 00:45:01]} {[%emt 00:00:49]} Qd6 {[%clk 00:44:56]} {[%emt
00:01:16]} 12. b4 {[%clk 00:38:59]} {[%emt 00:06:13]} a6 {[%clk 00:43:46]}
{[%emt 00:01:19]} 13. Bb2 {[%clk 00:35:58]} {[%emt 00:03:11]} Nbd7 {[%clk
00:43:38]} {[%emt 00:00:18]} 14. Qb3 {[%clk 00:31:46]} {[%emt 00:04:21]} Ne4
{[%clk 00:40:36]} {[%emt 00:03:14]} 15. Nxe4 {[%clk 00:26:33]} {[%emt
00:05:22]} dxe4 {[%clk 00:40:35]} {[%emt 00:00:10]} 16. Be2 {[%clk 00:25:30]}
{[%emt 00:01:15]} Nf6 {[%clk 00:40:15]} {[%emt 00:00:29]} 17. h3 {[%clk
00:24:08]} {[%emt 00:01:33]} Nd5 {[%clk 00:38:12]} {[%emt 00:02:12]} 18. Bc3
{[%clk 00:21:35]} {[%emt 00:02:43]} f5 {[%clk 00:34:02]} {[%emt 00:04:21]} 19.
Bd2 {[%clk 00:17:45]} {[%emt 00:04:00]} Kh8 {[%clk 00:32:23]} {[%emt 00:01:48]}
20. g3 {[%clk 00:16:10]} {[%emt 00:01:46]} Re6 {[%clk 00:30:43]} {[%emt
00:01:49]} 21. a4 {[%clk 00:13:51]} {[%emt 00:02:29]} g5 {[%clk 00:25:45]}
{[%emt 00:05:09]} 22. Kh2 {[%clk 00:08:02]} {[%emt 00:05:58]} Rg8 {[%clk
00:18:28]} {[%emt 00:07:27]} 23. Rg1 {[%clk 00:07:02]} {[%emt 00:01:10]} Rh6
{[%clk 00:15:08]} {[%emt 00:03:30]} 24. Rg2 {[%clk 00:04:22]} {[%emt 00:02:50]}
Rxh3+ {[%clk 00:13:28]} {[%emt 00:01:50]} 25. Kg1 {[%clk 00:04:01]} {[%emt
00:00:31]} Qh6 {[%clk 00:13:21]} {[%emt 00:00:17]} 26. f3 {[%clk 00:01:39]}
{[%emt 00:02:32]} Rh1+ {[%clk 00:12:57]} {[%emt 00:00:35]} 27. Kf2 {[%clk
00:01:48]} {[%emt 00:00:01]} Rxa1 {[%clk 00:12:59]} {[%emt 00:00:08]} 0-1

[Event "FIDE U16 Olympiad_boards_1-80"]
[Site "Eindhoven, Netherlands"]
[Date "2023.08.14"]
[Round "2.77"]
[White "Bogdanov, Artyom"]
[Black "Chunsukon, Viritpol"]
[Result "1-0"]
[TimeControl "2700+10"]
[WhiteElo "1852"]
[BlackElo "1542"]

1. e4 {[%clk 00:45:19]} e6 {[%clk 00:45:18]} {[%emt 00:00:03]} 2. d4 {[%clk
00:45:27]} {[%emt 00:00:02]} d5 {[%clk 00:45:28]} 3. Nd2 {[%clk 00:45:36]} a6
{[%clk 00:45:33]} {[%emt 00:00:05]} 4. Bd3 {[%clk 00:44:58]} {[%emt 00:00:47]}
c5 {[%clk 00:44:45]} {[%emt 00:00:59]} 5. dxc5 {[%clk 00:45:01]} {[%emt
00:00:08]} Bxc5 {[%clk 00:44:33]} {[%emt 00:00:21]} 6. Ngf3 {[%clk 00:45:07]}
{[%emt 00:00:03]} Nf6 {[%clk 00:43:38]} {[%emt 00:01:05]} 7. Qe2 {[%clk
00:43:54]} {[%emt 00:01:24]} Nc6 {[%clk 00:40:07]} {[%emt 00:03:41]} 8. a3
{[%clk 00:43:12]} {[%emt 00:00:51]} O-O {[%clk 00:36:11]} {[%emt 00:04:06]} 9.
O-O {[%clk 00:41:11]} {[%emt 00:02:11]} Re8 {[%clk 00:30:37]} {[%emt 00:05:45]}
10. e5 {[%clk 00:36:57]} {[%emt 00:04:24]} Nd7 {[%clk 00:30:26]} {[%emt
00:00:20]} 11. Nb3 {[%clk 00:37:00]} {[%emt 00:00:08]} Be7 {[%clk 00:30:13]}
{[%emt 00:00:23]} 12. c3 {[%clk 00:25:58]} {[%emt 00:11:12]} Qc7 {[%clk
00:28:33]} {[%emt 00:01:49]} 13. Re1 {[%clk 00:21:21]} {[%emt 00:04:47]} f6
{[%clk 00:21:11]} {[%emt 00:07:33]} 14. Nfd4 {[%clk 00:18:39]} {[%emt
00:02:52]} Qxe5 {[%clk 00:14:15]} {[%emt 00:07:06]} 15. Qd1 {[%clk 00:16:48]}
{[%emt 00:02:01]} Qd6 {[%clk 00:09:15]} {[%emt 00:05:09]} 16. Rxe6 {[%clk
00:15:40]} {[%emt 00:01:18]} Qc7 {[%clk 00:08:41]} {[%emt 00:00:45]} 17. Qh5
{[%clk 00:09:42]} {[%emt 00:06:08]} g6 {[%clk 00:06:36]} {[%emt 00:02:15]} 18.
Bxg6 {[%clk 00:09:23]} {[%emt 00:00:28]} Nf8 {[%clk 00:06:20]} {[%emt
00:00:26]} 19. Bf7+ {[%clk 00:06:32]} {[%emt 00:03:01]} Kh8 {[%clk 00:06:23]}
{[%emt 00:00:07]} 20. Rxc6 {[%clk 00:06:32]} {[%emt 00:00:09]} bxc6 {[%clk
00:06:21]} {[%emt 00:00:13]} 21. Bxe8 {[%clk 00:06:39]} {[%emt 00:00:03]} Bg4
{[%clk 00:05:13]} {[%emt 00:01:18]} 22. Qf7 {[%clk 00:05:20]} {[%emt 00:01:29]}
c5 {[%clk 00:05:02]} {[%emt 00:00:21]} 23. Bh6 {[%clk 00:05:21]} {[%emt
00:00:09]} cxd4 {[%clk 00:05:03]} {[%emt 00:00:09]} 24. Bg7# {[%clk 00:05:29]}
{[%emt 00:00:02]} 1-0

[Event "FIDE U16 Olympiad_boards_1-80"]
[Site "Eindhoven, Netherlands"]
[Date "2023.08.14"]
[Round "2.78"]
[White "Chiravanich, Pathee"]
[Black "Smirnov, Mark"]
[Result "0-1"]
[TimeControl "2700+10"]
[WhiteElo "1523"]
[BlackElo "1936"]

1. e4 {[%clk 00:45:17]} {[%emt 00:00:03]} c5 {[%clk 00:45:18]} {[%emt
00:00:03]} 2. Nf3 {[%clk 00:45:26]} {[%emt 00:00:02]} Nc6 {[%clk 00:45:26]}
{[%emt 00:00:01]} 3. Bb5 {[%clk 00:45:33]} {[%emt 00:00:02]} g6 {[%clk
00:45:35]} {[%emt 00:00:02]} 4. O-O {[%clk 00:45:40]} {[%emt 00:00:03]} Bg7
{[%clk 00:45:41]} {[%emt 00:00:05]} 5. Re1 {[%clk 00:45:48]} e5 {[%clk
00:45:48]} {[%emt 00:00:03]} 6. d3 {[%clk 00:45:21]} {[%emt 00:00:37]} Nge7
{[%clk 00:45:34]} {[%emt 00:00:21]} 7. Nc3 {[%clk 00:44:40]} {[%emt 00:00:54]}
O-O {[%clk 00:42:20]} {[%emt 00:03:24]} 8. Be3 {[%clk 00:42:50]} {[%emt
00:02:00]} d6 {[%clk 00:41:58]} {[%emt 00:00:32]} 9. h3 {[%clk 00:41:34]}
{[%emt 00:01:27]} a6 {[%clk 00:40:43]} {[%emt 00:01:25]} 10. Bxc6 {[%clk
00:41:41]} {[%emt 00:00:03]} Nxc6 {[%clk 00:40:12]} {[%emt 00:00:40]} 11. Qd2
{[%clk 00:41:45]} {[%emt 00:00:06]} f5 {[%clk 00:37:52]} {[%emt 00:02:31]} 12.
Bh6 {[%clk 00:40:34]} {[%emt 00:01:21]} f4 {[%clk 00:37:51]} {[%emt 00:00:11]}
13. Bxg7 {[%clk 00:40:36]} {[%emt 00:00:07]} Kxg7 {[%clk 00:37:59]} 14. Ne2
{[%clk 00:35:32]} {[%emt 00:05:15]} g5 {[%clk 00:37:35]} {[%emt 00:00:34]} 15.
Nh2 {[%clk 00:34:55]} {[%emt 00:00:48]} h5 {[%clk 00:37:06]} {[%emt 00:00:38]}
16. c3 {[%clk 00:31:21]} {[%emt 00:03:43]} g4 {[%clk 00:35:20]} {[%emt
00:01:58]} 17. hxg4 {[%clk 00:31:23]} {[%emt 00:00:08]} hxg4 {[%clk 00:35:17]}
{[%emt 00:00:12]} 18. Rad1 {[%clk 00:27:59]} {[%emt 00:03:34]} Qh4 {[%clk
00:34:11]} {[%emt 00:01:16]} 19. d4 {[%clk 00:20:08]} {[%emt 00:08:01]} Rh8
{[%clk 00:33:46]} {[%emt 00:00:33]} 20. dxe5 {[%clk 00:19:09]} {[%emt
00:01:11]} Qxh2+ {[%clk 00:30:43]} {[%emt 00:03:13]} 21. Kf1 {[%clk 00:19:18]}
{[%emt 00:00:01]} f3 {[%clk 00:30:02]} {[%emt 00:00:51]} 22. Qg5+ {[%clk
00:19:26]} {[%emt 00:00:02]} Kh7 {[%clk 00:30:04]} {[%emt 00:00:06]} 23. gxf3
{[%clk 00:15:08]} {[%emt 00:04:30]} gxf3 {[%clk 00:30:12]} {[%emt 00:00:02]} 24.
Nf4 {[%clk 00:15:06]} {[%emt 00:00:12]} Qh1+ {[%clk 00:30:14]} {[%emt
00:00:08]} 25. Qg1 {[%clk 00:15:02]} {[%emt 00:00:15]} Bh3+ {[%emt 00:00:38]}
0-1